Workbook

Sheet App 2-IB Load Forecast Analysis
R1: File Number: | S1: EB-2025-0252
R2: Exhibit:
A3: Appendix 2-IB | R3: Tab:
A4: Customer, Connections, Load Forecast and Revenues Data and Analysis | R4: Schedule:
A5: Customer Numbers | B5: Year End | R5: Page:
R7: Date:
A12: This sheet is to be filled in accordance with the instructions documented in section 2.3.2 of Chapter 2 of the Filing Requirements for Distribution Rate Applications, in terms of one set of tables per customer class.
A14: Costumers/Connections | R14: Costumers/Connections Variance Analysis
A15: Rate Class | B15: Historical 2017 | C15: Historical 2018 | D15: Historical 2019 | E15: Historical 2020 | F15: Historical 2021 | G15: Historical 2022 | H15: Historical 2023 | I15: Historical 2024 | J15: Bridge Year 2025 | K15: Bridge Year 2026 | L15: Test Year 2027 | M15: Test Year 2028 | N15: Test Year 2029 | O15: Test Year 2030 | P15: Test Year 2031 | R15: Rate Class | S15: =C15 -> Historical 2018 | T15: =D15 -> Historical 2019 | U15: =E15 -> Historical 2020 | V15: =F15 -> Historical 2021 | W15: =G15 -> Historical 2022 | X15: Historical 2023 | Y15: Historical 2024 | Z15: Bridge Year 2025 | AA15: Bridge Year 2026 | AB15: =L15 -> Test Year 2027 | AC15: Test Year 2028 | AD15: Test Year 2029 | AE15: Test Year 2030 | AF15: Test Year 2031
A16: Residential | B16: 940384 | C16: 948720 | D16: 955435 | E16: 962014 | F16: 969260 | G16: 975694 | H16: 981275 | I16: 985462 | J16: 989905 | K16: 993943 | L16: 998052 | M16: 1002542 | N16: 1006917 | O16: 1011259 | P16: 1015576 | R16: =A16 -> Residential | S16: =IFERROR((C16-B16)/B16,) -> 0.008864463879 | T16: =IFERROR((D16-C16)/C16,) -> 0.007077957669 | U16: =IFERROR((E16-D16)/D16,) -> 0.00688586874 | V16: =IFERROR((F16-E16)/E16,) -> 0.007532114917 | W16: 0.006638053773 | X16: 0.005720031075 | Y16: 0.004266897659 | Z16: 0.004508545231 | AA16: 0.004079179315 | AB16: 0.00413403988 | AC16: 0.004498763591 | AD16: 0.004363906949 | AE16: 0.004312172701 | AF16: 0.004268936049
A17: General Service < 50 kW | B17: 83247 | C17: 84093 | D17: 84306 | E17: 85094 | F17: 85764 | G17: 87002 | H17: 87707 | I17: 88209 | J17: 89263 | K17: 89880 | L17: 90652 | M17: 91361 | N17: 92050 | O17: 92716 | P17: 93367 | R17: General Service < 50 kW | S17: =IFERROR((C17-B17)/B17,) -> 0.01016252838 | T17: 0.002532909993 | U17: 0.009346902949 | V17: 0.007873645615 | W17: 0.01443496106 | X17: 0.008103261994 | Y17: 0.005723602449 | Z17: 0.0119488941 | AA17: 0.006912158453 | AB17: 0.008589230085 | AC17: 0.007821118122 | AD17: 0.007541511148 | AE17: 0.007235198262 | AF17: 0.007021441822
A18: General Service > 50 kW, Regular | B18: 12980 | C18: 13205 | D18: 13270 | E18: 13099 | F18: 13059 | G18: 12376 | H18: 12086 | I18: 11982 | J18: 11797 | K18: 11585 | L18: 11397 | M18: 11229 | N18: 11082 | O18: 10953 | P18: 10842 | R18: General Service > 50 kW, Regular | S18: 0.01733436055 | T18: =IFERROR((D18-C18)/C18,) -> 0.004922377887 | U18: -0.0128862095 | V18: -0.003053668219 | W18: -0.05230109503 | X18: -0.0234324499 | Y18: -0.008604997518 | Z18: -0.01543982641 | AA18: -0.01797067051 | AB18: -0.01622788088 | AC18: -0.01474072124 | AD18: -0.01309110339 | AE18: -0.01164049811 | AF18: -0.01013420981
A19: General Service > 50 kW, Intermediate | B19: 619 | C19: 626 | D19: 633 | E19: 655 | F19: 647 | G19: 563 | H19: 508 | I19: 487 | J19: 469 | K19: 445 | L19: 421 | M19: 401 | N19: 384 | O19: 370 | P19: 358 | R19: General Service > 50 kW, Intermediate | S19: 0.0113085622 | T19: 0.01118210863 | U19: 0.03475513428 | V19: -0.01221374046 | W19: -0.1298299845 | X19: -0.09769094139 | Y19: -0.04133858268 | Z19: -0.03696098563 | AA19: -0.05117270789 | AB19: -0.05393258427 | AC19: -0.04750593824 | AD19: -0.04239401496 | AE19: -0.03645833333 | AF19: -0.03243243243
A20: Large Use | B20: 26 | C20: 25 | D20: 26 | E20: 27 | F20: 24 | G20: 25 | H20: 27 | I20: 30 | J20: 31 | K20: 31 | L20: 32 | M20: 34 | N20: 35 | O20: 36 | P20: 36 | R20: Large Use | S20: -0.03846153846 | T20: 0.04 | U20: 0.03846153846 | V20: =IFERROR((F20-E20)/E20,) -> -0.1111111111 | W20: 0.04166666667 | X20: =IFERROR((H20-G20)/G20,) -> 0.08 | Y20: =IFERROR((I20-H20)/H20,) -> 0.1111111111 | Z20: =IFERROR((J20-I20)/I20,) -> 0.03333333333 | AA20: =IFERROR((K20-J20)/J20,) -> 0 | AB20: =IFERROR((L20-K20)/K20,) -> 0.03225806452 | AC20: =IFERROR((M20-L20)/L20,) -> 0.0625 | AD20: =IFERROR((N20-M20)/M20,) -> 0.02941176471 | AE20: =IFERROR((O20-N20)/N20,) -> 0.02857142857 | AF20: =IFERROR((P20-O20)/O20,) -> 0
A21: Large Use with Dedicated Assets | B21: 7 | C21: 7 | D21: 7 | E21: 5 | F21: 5 | G21: 5 | H21: 5 | I21: 6 | J21: 6 | K21: 6 | L21: 6 | M21: 6 | N21: 6 | O21: 6 | P21: 6 | R21: Large Use with Dedicated Assets | S21: 0 | T21: 0 | U21: -0.2857142857 | V21: 0 | W21: 0 | X21: 0 | Y21: 0.2 | Z21: 0 | AA21: 0 | AB21: 0 | AC21: 0 | AD21: 0 | AE21: 0 | AF21: 0
A22: Street Lighting | B22: 227625 | C22: 229961 | D22: 230685 | E22: 231795 | F22: 234891 | G22: 235451 | H22: 236505 | I22: 241236 | J22: 241932 | K22: 242666 | L22: 273870 | M22: 274744 | N22: 275618 | O22: 276492 | P22: 277367 | R22: Street Lighting | S22: 0.01026249314 | T22: 0.003148359939 | U22: 0.004811756291 | V22: 0.01335662978 | W22: 0.002384084533 | X22: =IFERROR((H22-G22)/G22,) -> 0.004476515283 | Y22: 0.02000380542 | Z22: 0.002885141521 | AA22: 0.003033910355 | AB22: 0.1285882654 | AC22: 0.00319129514 | AD22: 0.003181143173 | AE22: 0.003171055591 | AF22: 0.003164648525
A23: Sentinel Lighting | B23: 557 | C23: 552 | D23: 505 | E23: 489 | F23: 470 | G23: 462 | H23: 442 | I23: 422 | J23: 422 | K23: 411 | L23: 400 | M23: 389 | N23: 378 | O23: 367 | P23: 357 | R23: Sentinel Lighting | S23: -0.008976660682 | T23: -0.08514492754 | U23: -0.03168316832 | V23: -0.03885480573 | W23: -0.0170212766 | X23: -0.04329004329 | Y23: -0.04524886878 | Z23: 0 | AA23: -0.02606635071 | AB23: -0.02676399027 | AC23: -0.0275 | AD23: -0.02827763496 | AE23: -0.0291005291 | AF23: -0.0272479564
A24: Unmetered Scattered Load | B24: 11156 | C24: 11315 | D24: 11276 | E24: 11160 | F24: 11251 | G24: 11255 | H24: 11352 | I24: 11265 | J24: 11439 | K24: 11489 | L24: 11531 | M24: 11571 | N24: 11611 | O24: 11650 | P24: 11689 | R24: Unmetered Scattered Load | S24: 0.01425242022 | T24: -0.003446752099 | U24: -0.01028733593 | V24: 0.008154121864 | W24: 0.0003555239534 | X24: 0.008618391826 | Y24: -0.00766384778 | Z24: 0.0154460719 | AA24: 0.004371011452 | AB24: 0.003655670641 | AC24: 0.003468909895 | AD24: 0.003456918157 | AE24: 0.003358883817 | AF24: 0.003347639485
A25: Embedded Distributor | B25: 1 | C25: 1 | D25: 1 | E25: 1 | F25: 1 | G25: 1 | H25: 1 | I25: 1 | J25: 1 | K25: 1 | L25: 1 | M25: 1 | N25: 1 | O25: 1 | P25: 1 | R25: Embedded Distributor | S25: 0 | T25: 0 | U25: =IFERROR((E25-D25)/D25,) -> 0 | V25: 0 | W25: 0 | X25: 0 | Y25: 0 | Z25: 0 | AA25: 0 | AB25: 0 | AC25: 0 | AD25: 0 | AE25: 0 | AF25: 0
A29: Consumption (Actual) | R29: Consumption (Actual) Variance Analysis
A30: Rate Class | B30: =B15 -> Historical 2017 | C30: Historical 2018 | D30: Historical 2019 | E30: =E15 -> Historical 2020 | F30: Historical 2021 | G30: Historical 2022 | H30: Historical 2023 | I30: Historical 2024 | J30: Bridge Year 2025 | K30: Bridge Year 2026 | L30: Test Year 2027 | M30: Test Year 2028 | N30: Test Year 2029 | O30: Test Year 2030 | P30: Test Year 2031 | R30: Rate Class | S30: =C15 -> Historical 2018 | T30: =D15 -> Historical 2019 | U30: =E15 -> Historical 2020 | V30: =F15 -> Historical 2021 | W30: =G15 -> Historical 2022 | X30: Historical 2023 | Y30: Historical 2024 | Z30: Bridge Year 2025 | AA30: Bridge Year 2026 | AB30: Test Year 2027 | AC30: Test Year 2028 | AD30: Test Year 2029 | AE30: Test Year 2030 | AF30: Test Year 2031
A31: =A16 -> Residential | B31: 7100277.54 | C31: 7702402.98 | D31: 7371237.52 | E31: 8340436.65 | F31: 8161386.97 | G31: 8175488.82 | H31: 8002561.71 | I31: 8358536.73 | J31: 8437547.477 | K31: 8556581.533 | L31: 8833994.478 | M31: 9184005.56 | N31: 9550659.427 | O31: 10000906.39 | P31: 10421039.64 | R31: =A31 -> Residential | S31: =IF(ISERROR((C31-B31)/B31), "", (C31-B31)/B31) -> 0.08480308504 | T31: =IF(ISERROR((D31-C31)/C31), "", (D31-C31)/C31) -> -0.04299508359 | U31: =IF(ISERROR((E31-D31)/D31), "", (E31-D31)/D31) -> 0.1314839099 | V31: =IF(ISERROR((F31-E31)/E31), "", (F31-E31)/E31) -> -0.02146766261 | W31: =IF(ISERROR((G31-F31)/F31), "", (G31-F31)/F31) -> 0.001727874202 | X31: =IF(ISERROR((H31-G31)/G31), "", (H31-G31)/G31) -> -0.02115189854 | Y31: =IF(ISERROR((I31-H31)/H31), "", (I31-H31)/H31) -> 0.04448263355 | Z31: =IF(ISERROR((J31-I31)/I31), "", (J31-I31)/I31) -> 0.009452700782 | AA31: =IF(ISERROR((K31-J31)/J31), "", (K31-J31)/J31) -> 0.01410766064 | AB31: =IF(ISERROR((L31-K31)/K31), "", (L31-K31)/K31) -> 0.03242100174 | AC31: =IF(ISERROR((M31-L31)/L31), "", (M31-L31)/L31) -> 0.03962093059 | AD31: =IF(ISERROR((N31-M31)/M31), "", (N31-M31)/M31) -> 0.03992308856 | AE31: =IF(ISERROR((O31-N31)/N31), "", (O31-N31)/N31) -> 0.04714302357 | AF31: =IF(ISERROR((P31-O31)/O31), "", (P31-O31)/O31) -> 0.0420095175
A32: =A17 -> General Service < 50 kW | B32: 2647033 | C32: 2803802.99 | D32: 2711839.17 | E32: 2566342.96 | F32: 2587014 | G32: 2774846.19 | H32: 2744666.72 | I32: 2812814.22 | J32: 2800921.005 | K32: 2830937.598 | L32: 2873274.147 | M32: 2956718.718 | N32: 3045930.793 | O32: 3154197.388 | P32: 3257989.592 | R32: General Service < 50 kW | S32: 0.05922479622 | T32: -0.03279967256 | U32: -0.05365222673 | V32: 0.008054667799 | W32: 0.07260578799 | X32: -0.01087608751 | Y32: 0.02482906194 | Z32: -0.004228226277 | AA32: 0.01071668684 | AB32: 0.01495495671 | AC32: 0.02904163207 | AD32: 0.03017266224 | AE32: 0.0355446667 | AF32: 0.03290605839
A33: =A18 -> General Service > 50 kW, Regular | B33: 9817657.67 | C33: 10099472.48 | D33: 9946724.76 | E33: 9425433.5 | F33: 9538245.13 | G33: 9869980.1 | H33: 9944399 | I33: 10156193.3 | J33: 10198427.95 | K33: 10184084.01 | L33: 10175775.46 | M33: 10276207.57 | N33: 10336637.54 | O33: 10406726.67 | P33: 10488920.88 | R33: General Service > 50 kW, Regular | S33: 0.0287048927 | T33: -0.01512432657 | U33: -0.05240833265 | V33: 0.01196885321 | W33: 0.03477945529 | X33: 0.007539924017 | Y33: 0.02129784817 | Z33: 0.004158512094 | AA33: -0.001406485542 | AB33: -0.000815836788 | AC33: 0.00986972585 | AD33: 0.005880570831 | AE33: 0.006780650745 | AF33: 0.007898180552
A34: =A19 -> General Service > 50 kW, Intermediate | B34: 3385829.37 | C34: 3452031.31 | D34: 3374225.81 | E34: 3072345.21 | F34: 3207504.47 | G34: 3263164.62 | H34: 3137685.63 | I34: 3039667.08 | J34: 3050989.823 | K34: 3100028.457 | L34: 3080270.247 | M34: 3091114.629 | N34: 3103800.793 | O34: 3119048.188 | P34: 3135977.278 | R34: General Service > 50 kW, Intermediate | S34: 0.01955265099 | T34: -0.02253904818 | U34: -0.08946662642 | V34: 0.04399221141 | W34: 0.0173531013 | X34: -0.03845315962 | Y34: -0.03123912385 | Z34: 0.003724994378 | AA34: 0.01607302448 | AB34: -0.006373557508 | AC34: 0.003520594139 | AD34: 0.004104074433 | AE34: 0.004912491372 | AF34: 0.00542764612
A35: =A20 -> Large Use | B35: 1604810.28 | C35: 1621609.08 | D35: 1681693.19 | E35: 1684706.96 | F35: 1724380.44 | G35: 1784435.77 | H35: 1883046.47 | I35: 1941695.6 | J35: 2030408.097 | K35: 2124065.342 | L35: 2129485.286 | M35: 2135913.994 | N35: 2164531.867 | O35: 2227766.552 | P35: 2232717.744 | R35: Large Use | S35: 0.01046777941 | T35: 0.03705215439 | U35: 0.00179210454 | V35: 0.02354918745 | W35: 0.03482719277 | X35: 0.05526155755 | Y35: 0.03114587501 | Z35: 0.04568815867 | AA35: 0.04612730108 | AB35: 0.0025516842 | AC35: 0.00301890221 | AD35: 0.01339842026 | AE35: 0.02921402328 | AF35: 0.002222491706
A36: Large Use with Dedicated Assets | B36: 1047870.89 | C36: 1094743.85 | D36: 1091050.02 | E36: 989927.43 | F36: 979943.86 | G36: 987578.66 | H36: 905170.53 | I36: 864720.1 | J36: 852476.16 | K36: 855327.71 | L36: 855837.7586 | M36: 855837.7586 | N36: 855837.7586 | O36: 855837.7586 | P36: 855837.7586 | R36: Large Use with Dedicated Assets | S36: 0.04473161765 | T36: -0.003374150035 | U36: -0.09268373415 | V36: -0.01008515341 | W36: 0.007791058561 | X36: -0.08344462405 | Y36: -0.0446881871 | Z36: -0.01415942569 | AA36: 0.003345020229 | AB36: 0.0005963195276 | AC36: 0 | AD36: 0 | AE36: 0 | AF36: 0
A37: =A22 -> Street Lighting | B37: 143163.56 | C37: 127391.76 | D37: 114454.76 | E37: 110866.3 | F37: 96997.12 | G37: 96188.53 | H37: 93312.94 | I37: 93691.39 | J37: 93207.9 | K37: 94717 | L37: 95129.68 | M37: 95261.87 | N37: 95307.82 | O37: 95324.03 | P37: 95329.79 | R37: Street Lighting | S37: -0.1101663021 | T37: -0.1015528791 | U37: -0.03135264973 | V37: -0.125098249 | W37: -0.00833622689 | X37: -0.02989535239 | Y37: 0.004055707601 | Z37: -0.005160452844 | AA37: 0.0161906877 | AB37: 0.004356979212 | AC37: 0.001389576839 | AD37: 0.0004823545874 | AE37: 0.0001700804824 | AF37: 6.042547719e-05
A38: Sentinel Lighting | B38: 755.19 | C38: 782.92 | D38: 688.84 | E38: 698.51 | F38: 664.29 | G38: 661.37 | H38: 631.67 | I38: 587.44 | J38: 629.36 | K38: 590.18 | L38: 573.65 | M38: 557.11 | N38: 540.56 | O38: 524.03 | P38: 507.51 | R38: Sentinel Lighting | S38: 0.03671923622 | T38: -0.1201655342 | U38: 0.01403809303 | V38: -0.04898999299 | W38: -0.004395670566 | X38: -0.0449067844 | Y38: -0.07002073868 | Z38: 0.07136047937 | AA38: -0.06225371806 | AB38: -0.02800840422 | AC38: -0.02883291205 | AD38: -0.02970688015 | AE38: -0.03057939914 | AF38: -0.0315249127
A39: Unmetered Scattered Load | B39: 44362.64 | C39: 44364.14 | D39: 44561.12 | E39: 45198.68 | F39: 44875.75 | G39: 45177.05 | H39: 44925.23 | I39: 47635.88 | J39: 46271.02 | K39: 47095.25 | L39: 47482.16 | M39: 47869.91 | N39: 48257.86 | O39: 48645.87 | P39: 49033.86 | R39: Unmetered Scattered Load | S39: 3.38122348e-05 | T39: 0.004440072545 | U39: 0.01430753985 | V39: -0.007144677676 | W39: 0.006714093915 | X39: -0.005574069135 | Y39: 0.06033691981 | Z39: -0.02865193212 | AA39: 0.01781309338 | AB39: 0.008215478206 | AC39: 0.008166224957 | AD39: 0.008104255889 | AE39: 0.008040348246 | AF39: 0.007975805551
A40: Embedded Distributor | B40: 17012 | C40: 17012 | D40: 17012 | E40: 17012 | F40: 17012 | G40: 17012 | H40: 17012 | I40: 17012 | J40: 17012 | K40: 17012 | L40: 17012 | M40: 17012 | N40: 17012 | O40: 17012 | P40: 17012 | R40: Embedded Distributor | S40: 0 | T40: 0 | U40: 0 | V40: 0 | W40: 0 | X40: 0 | Y40: 0 | Z40: 0 | AA40: 0 | AB40: 0 | AC40: 0 | AD40: 0 | AE40: 0 | AF40: 0
A44: Demand (Actual) | R44: Demand (Actual) Variance Analysis
A45: Rate Class | B45: =B15 -> Historical 2017 | C45: Historical 2018 | D45: Historical 2019 | E45: =E15 -> Historical 2020 | F45: Historical 2021 | G45: Historical 2022 | H45: Historical 2023 | I45: Historical 2024 | J45: Bridge Year 2025 | K45: Bridge Year 2026 | L45: Test Year 2027 | M45: Test Year 2028 | N45: Test Year 2029 | O45: Test Year 2030 | P45: Test Year 2031 | R45: Rate Class | S45: =C15 -> Historical 2018 | T45: =D15 -> Historical 2019 | U45: =E15 -> Historical 2020 | V45: =F15 -> Historical 2021 | W45: =G15 -> Historical 2022 | X45: Historical 2023 | Y45: Historical 2024 | Z45: Bridge Year 2025 | AA45: Bridge Year 2026 | AB45: Test Year 2027 | AC45: Test Year 2028 | AD45: Test Year 2029 | AE45: Test Year 2030 | AF45: Test Year 2031
A46: =A31 -> Residential | R46: =A46 -> Residential | W46: =IF(ISERROR((G46-#REF!)/#REF!), "", (G46-#REF!)/#REF!) ->  | X46: =IF(ISERROR((H46-G46)/G46), "", (H46-G46)/G46) -> 
A47: =A32 -> General Service < 50 kW | R47: General Service < 50 kW | W47: =IF(ISERROR((G47-#REF!)/#REF!), "", (G47-#REF!)/#REF!) -> 
A48: =A33 -> General Service > 50 kW, Regular | B48: 26709.32 | C48: 26907.5 | D48: 27022.33 | E48: 26172.52 | F48: 25981.72 | G48: 26678.68 | H48: 26846.38 | I48: 26735.42 | J48: 27180.93008 | K48: 27405.93124 | L48: 27755.01969 | M48: 27942.22102 | N48: 28173.42282 | O48: 28293.74048 | P48: 28499.60823 | R48: General Service > 50 kW, Regular | S48: =IF(ISERROR((C48-B48)/B48), "", (C48-B48)/B48) -> 0.007419881899 | T48: =IF(ISERROR((D48-C48)/C48), "", (D48-C48)/C48) -> 0.004267583388 | U48: =IF(ISERROR((E48-D48)/D48), "", (E48-D48)/D48) -> -0.03144843542 | V48: =IF(ISERROR((F48-E48)/E48), "", (F48-E48)/E48) -> -0.007290088994 | W48: =IF(ISERROR((G48-F48)/F48), "", (G48-F48)/F48) -> 0.02682501389 | X48: 0.006285918194 | Y48: -0.004133145698 | Z48: 0.01666366493 | AA48: 0.008277904908 | AB48: 0.01273769724 | AC48: 0.006744773692 | AD48: 0.008274281373 | AE48: 0.004270608877 | AF48: 0.007276088008
A49: =A34 -> General Service > 50 kW, Intermediate | B49: 7607.94 | C49: 7640.69 | D49: 7502.99 | E49: 7231.75 | F49: 7203.58 | G49: 7403.09 | H49: 7019.02 | I49: 6805 | J49: 6810.507541 | K49: 6797.362551 | L49: 6604.074943 | M49: 6525.778765 | N49: 6499.442064 | O49: 6474.992752 | P49: 6466.31845 | R49: General Service > 50 kW, Intermediate | S49: 0.004304713234 | T49: -0.01802193257 | U49: -0.03615092117 | V49: -0.003895322709 | W49: 0.02769595118 | X49: -0.05187968808 | Y49: -0.03049143613 | Z49: 0.0008093374446 | AA49: -0.001930104313 | AB49: -0.02843567731 | AC49: -0.01185573737 | AD49: -0.004035794311 | AE49: -0.003761755634 | AF49: -0.001339662037
A50: =A35 -> Large Use | B50: 3029.02 | C50: 3090.22 | D50: 3129.88 | E50: 3089.54 | F50: 3206.45 | G50: 3328.93 | H50: 3492.28 | I50: 3625.45 | J50: 3784.787794 | K50: 3926.176097 | L50: 4034.148384 | M50: 4151.355614 | N50: 4245.093595 | O50: 4491.671409 | P50: 4500.720326 | R50: Large Use | S50: 0.02020455461 | T50: 0.01283403771 | U50: =IF(ISERROR((E50-D50)/D50), "", (E50-D50)/D50) -> -0.01288867305 | V50: 0.03784058468 | W50: 0.03819800714 | X50: 0.04906982123 | Y50: 0.03813268123 | Z50: 0.04394979777 | AA50: 0.03735699601 | AB50: 0.02750062263 | AC50: 0.02905377274 | AD50: 0.02258008931 | AE50: 0.05808536583 | AF50: 0.002014598954
A51: Large Use with Dedicated Assets | B51: 1882.85 | C51: 1934.25 | D51: 1934.97 | E51: 1792.7 | F51: 1890.3 | G51: 1798.13 | H51: 1646.35 | I51: 1601.55 | J51: 1623.09 | K51: 1598.85 | L51: 1620.102026 | M51: 1616.422026 | N51: 1620.102026 | O51: 1620.102026 | P51: 1620.102026 | R51: Large Use with Dedicated Assets | S51: 0.02729904135 | T51: 0.0003722373013 | U51: -0.07352568774 | V51: 0.05444301891 | W51: -0.04875945617 | X51: -0.08440991474 | Y51: -0.02721171075 | Z51: 0.01344947083 | AA51: -0.01493447683 | AB51: 0.01329206972 | AC51: -0.002271461884 | AD51: 0.00227663317 | AE51: 0 | AF51: 0
A52: =A37 -> Street Lighting | B52: 401.89 | C52: 341.2 | D52: 334.96 | E52: 301.45 | F52: 272.71 | G52: 268.36 | H52: 262.29 | I52: 258.82 | J52: 261.49 | K52: 264.52 | L52: 265.73 | M52: 265.38 | N52: 266.24 | O52: 266.31 | P52: 266.31 | R52: Street Lighting | S52: -0.1510114708 | T52: =IF(ISERROR((D52-C52)/C52), "", (D52-C52)/C52) -> -0.0182883939 | U52: -0.100041796 | V52: -0.0953391939 | W52: -0.01595101023 | X52: -0.02261887017 | Y52: -0.01322963132 | Z52: 0.01031604976 | AA52: 0.0115874412 | AB52: 0.004574323303 | AC52: -0.001317126407 | AD52: 0.003240636069 | AE52: 0.0002629206731 | AF52: 0
A53: Sentinel Lighting | B53: 1.8292 | C53: 2.1792 | D53: 1.9292 | E53: 1.7504 | F53: 1.7856 | G53: 1.7088 | H53: 1.7388 | I53: 1.6987 | J53: 1.6188 | K53: 1.6089 | L53: 1.5689 | M53: 1.4888 | N53: 1.4389 | O53: 1.3889 | P53: 1.3689 | R53: Sentinel Lighting | S53: 0.1913404767 | T53: =IF(ISERROR((D53-C53)/C53), "", (D53-C53)/C53) -> -0.1147209985 | U53: -0.092680904 | V53: 0.02010968921 | W53: -0.04301075269 | X53: 0.01755617978 | Y53: -0.02306188176 | Z53: -0.04703596868 | AA53: -0.006115641216 | AB53: -0.02486170676 | AC53: -0.05105487921 | AD53: -0.03351692638 | AE53: -0.03474876642 | AF53: -0.0143998848
A54: Unmetered Scattered Load | R54: Unmetered Scattered Load | W54: =IF(ISERROR((G54-#REF!)/#REF!), "", (G54-#REF!)/#REF!) -> 
A55: Embedded Distributor | R55: Embedded Distributor | W55: =IF(ISERROR((G55-#REF!)/#REF!), "", (G55-#REF!)/#REF!) ->  | X55: =IF(ISERROR((H55-G55)/G55), "", (H55-G55)/G55) -> 
A59: Consumption (Weather Normalized) | R59: Consumption (Weather Normalized) Variance Analysis
A60: Rate Class | B60: =B15 -> Historical 2017 | C60: Historical 2018 | D60: Historical 2019 | E60: =E15 -> Historical 2020 | F60: Historical 2021 | G60: Historical 2022 | H60: Historical 2023 | I60: Historical 2024 | J60: Bridge Year 2025 | K60: Bridge Year 2026 | L60: Test Year 2027 | M60: Test Year 2028 | N60: Test Year 2029 | O60: Test Year 2030 | P60: Test Year 2031 | R60: Rate Class | S60: =C15 -> Historical 2018 | T60: =D15 -> Historical 2019 | U60: =E15 -> Historical 2020 | V60: =F15 -> Historical 2021 | W60: =G15 -> Historical 2022 | X60: Historical 2023 | Y60: Historical 2024 | Z60: Bridge Year 2025 | AA60: Bridge Year 2026 | AB60: Test Year 2027 | AC60: Test Year 2028 | AD60: Test Year 2029 | AE60: Test Year 2030 | AF60: Test Year 2031
A61: =A46 -> Residential | B61: 7295018.06 | C61: 7406593.2 | D61: 7485787.24 | E61: 8169172.31 | F61: 8108383.81 | G61: 8124261.62 | H61: 8284487.53 | I61: 8511337.35 | J61: 8420147.937 | K61: 8556581.533 | L61: 8833994.478 | M61: 9184005.56 | N61: 9550659.427 | O61: 10000906.39 | P61: 10421039.64 | R61: =A61 -> Residential | S61: =IF(ISERROR((C61-B61)/B61), "", (C61-B61)/B61) -> 0.01529470374 | T61: =IF(ISERROR((D61-C61)/C61), "", (D61-C61)/C61) -> 0.01069237068 | U61: =IF(ISERROR((E61-D61)/D61), "", (E61-D61)/D61) -> 0.09129100896 | V61: =IF(ISERROR((F61-E61)/E61), "", (F61-E61)/E61) -> -0.007441206733 | W61: =IF(ISERROR((G61-F61)/F61), "", (G61-F61)/F61) -> 0.001958196648 | X61: =IF(ISERROR((H61-G61)/G61), "", (H61-G61)/G61) -> 0.01972190428 | Y61: 0.02738248071 | Z61: -0.01071387604 | AA61: 0.01620323033 | AB61: 0.03242100174 | AC61: 0.03962093059 | AD61: 0.03992308856 | AE61: 0.04714302357 | AF61: 0.0420095175
A62: =A47 -> General Service < 50 kW | B62: 2541190.1 | C62: 2603499.37 | D62: 2713678.31 | E62: 2544016.28 | F62: 2583255.09 | G62: 2757495.58 | H62: 2800928.33 | I62: 2854839.64 | J62: 2794905.795 | K62: 2830937.598 | L62: 2873274.147 | M62: 2956718.718 | N62: 3045930.793 | O62: 3154197.388 | P62: 3257989.592 | R62: General Service < 50 kW | S62: 0.02451972011 | T62: 0.042319557 | U62: -0.06252105468 | V62: 0.01542396183 | W62: 0.06744997452 | X62: 0.01575079587 | Y62: 0.01924765779 | Z62: -0.02099376937 | AA62: 0.01289195626 | AB62: 0.01495495671 | AC62: 0.02904163207 | AD62: 0.03017266224 | AE62: 0.0355446667 | AF62: 0.03290605839
A63: =A48 -> General Service > 50 kW, Regular | B63: 9893480.87 | C63: 9969073.89 | D63: 9975559.24 | E63: 9369055.58 | F63: 9521979.16 | G63: 9839231.57 | H63: 10069504.55 | I63: 10237327.43 | J63: 10188309.8 | K63: 10184084.01 | L63: 10175775.46 | M63: 10276207.57 | N63: 10336637.54 | O63: 10406726.67 | P63: 10488920.88 | R63: General Service > 50 kW, Regular | S63: 0.007640689965 | T63: 0.0006505468885 | U63: -0.06079896329 | V63: 0.01632219797 | W63: 0.03331790636 | X63: 0.02340355325 | Y63: 0.0166664486 | Z63: -0.004788127338 | AA63: -0.0004147686466 | AB63: -0.000815836788 | AC63: 0.00986972585 | AD63: 0.005880570831 | AE63: 0.006780650745 | AF63: 0.007898180552
A64: =A49 -> General Service > 50 kW, Intermediate | B64: 3385829.37 | C64: 3452031.31 | D64: 3374225.81 | E64: 3072345.21 | F64: 3207504.47 | G64: 3263164.62 | H64: 3137685.63 | I64: 3039667.08 | J64: 3050989.823 | K64: 3100028.457 | L64: 3080270.247 | M64: 3091114.629 | N64: 3103800.793 | O64: 3119048.188 | P64: 3135977.278 | R64: General Service > 50 kW, Intermediate | S64: 0.01955265099 | T64: -0.02253904818 | U64: -0.08946662642 | V64: 0.04399221141 | W64: 0.0173531013 | X64: -0.03845315962 | Y64: -0.03123912385 | Z64: 0.003724994378 | AA64: 0.01607302448 | AB64: -0.006373557508 | AC64: 0.003520594139 | AD64: 0.004104074433 | AE64: 0.004912491372 | AF64: 0.00542764612
A65: =A50 -> Large Use | B65: 1604810.28 | C65: 1621609.08 | D65: 1681693.19 | E65: 1684706.96 | F65: 1724380.44 | G65: 1784435.77 | H65: 1883046.47 | I65: 1941695.6 | J65: 2030408.097 | K65: 2124065.342 | L65: 2129485.286 | M65: 2135913.994 | N65: 2164531.867 | O65: 2227766.552 | P65: 2232717.744 | R65: Large Use | S65: 0.01046777941 | T65: 0.03705215439 | U65: 0.00179210454 | V65: 0.02354918745 | W65: 0.03482719277 | X65: 0.05526155755 | Y65: 0.03114587501 | Z65: 0.04568815867 | AA65: 0.04612730108 | AB65: 0.0025516842 | AC65: 0.00301890221 | AD65: 0.01339842026 | AE65: 0.02921402328 | AF65: 0.002222491706
A66: Large Use with Dedicated Assets | B66: 1047870.89 | C66: 1094743.85 | D66: 1091050.02 | E66: 989927.43 | F66: 979943.86 | G66: 987578.66 | H66: 905170.53 | I66: 864720.1 | J66: 852476.16 | K66: 855327.71 | L66: 855837.7586 | M66: 855837.7586 | N66: 855837.7586 | O66: 855837.7586 | P66: 855837.7586 | R66: Large Use with Dedicated Assets | S66: 0.04473161765 | T66: -0.003374150035 | U66: -0.09268373415 | V66: -0.01008515341 | W66: 0.007791058561 | X66: -0.08344462405 | Y66: -0.0446881871 | Z66: -0.01415942569 | AA66: 0.003345020229 | AB66: 0.0005963195276 | AC66: 0 | AD66: 0 | AE66: 0 | AF66: 0
A67: =A52 -> Street Lighting | B67: 143163.56 | C67: 127391.76 | D67: 114454.76 | E67: 110866.3 | F67: 96997.12 | G67: 96188.53 | H67: 93312.94 | I67: 93691.39 | J67: 93207.9 | K67: 94717 | L67: 95129.68 | M67: 95261.87 | N67: 95307.82 | O67: 95324.03 | P67: 95329.79 | R67: Street Lighting | S67: -0.1101663021 | T67: -0.1015528791 | U67: -0.03135264973 | V67: -0.125098249 | W67: -0.00833622689 | X67: -0.02989535239 | Y67: 0.004055707601 | Z67: -0.005160452844 | AA67: 0.0161906877 | AB67: 0.004356979212 | AC67: 0.001389576839 | AD67: 0.0004823545874 | AE67: 0.0001700804824 | AF67: 6.042547719e-05
A68: Sentinel Lighting | B68: 755.19 | C68: 782.92 | D68: 688.84 | E68: 698.51 | F68: 664.29 | G68: 661.37 | H68: 631.67 | I68: 587.44 | J68: 629.36 | K68: 590.18 | L68: 573.65 | M68: 557.11 | N68: 540.56 | O68: 524.03 | P68: 507.51 | R68: Sentinel Lighting | S68: 0.03671923622 | T68: -0.1201655342 | U68: 0.01403809303 | V68: -0.04898999299 | W68: -0.004395670566 | X68: -0.0449067844 | Y68: -0.07002073868 | Z68: 0.07136047937 | AA68: -0.06225371806 | AB68: -0.02800840422 | AC68: -0.02883291205 | AD68: -0.02970688015 | AE68: -0.03057939914 | AF68: -0.0315249127
A69: Unmetered Scattered Load | B69: 44362.64 | C69: 44364.14 | D69: 44561.12 | E69: 45198.68 | F69: 44875.75 | G69: 45177.05 | H69: 44925.23 | I69: 47635.88 | J69: 46271.02 | K69: 47095.25 | L69: 47482.16 | M69: 47869.91 | N69: 48257.86 | O69: 48645.87 | P69: 49033.86 | R69: Unmetered Scattered Load | S69: 3.38122348e-05 | T69: 0.004440072545 | U69: 0.01430753985 | V69: -0.007144677676 | W69: 0.006714093915 | X69: -0.005574069135 | Y69: 0.06033691981 | Z69: -0.02865193212 | AA69: 0.01781309338 | AB69: 0.008215478206 | AC69: 0.008166224957 | AD69: 0.008104255889 | AE69: 0.008040348246 | AF69: 0.007975805551
A70: Embedded Distributor | B70: 17012 | C70: 17012 | D70: 17012 | E70: 17012 | F70: 17012 | G70: 17012 | H70: 17012 | I70: 17012 | J70: 17012 | K70: 17012 | L70: 17012 | M70: 17012 | N70: 17012 | O70: 17012 | P70: 17012 | R70: Embedded Distributor | S70: 0 | T70: 0 | U70: 0 | V70: 0 | W70: 0 | X70: 0 | Y70: 0 | Z70: 0 | AA70: 0 | AB70: 0 | AC70: 0 | AD70: 0 | AE70: 0 | AF70: 0
A74: Demand (Weather Normalized) | R74: Demand (Weather Normalized) Variance Analysis
A75: Rate Class | B75: =B15 -> Historical 2017 | C75: Historical 2018 | D75: Historical 2019 | E75: =E15 -> Historical 2020 | F75: Historical 2021 | G75: Historical 2022 | H75: Historical 2023 | I75: Historical 2024 | J75: Bridge Year 2025 | K75: Bridge Year 2026 | L75: Test Year 2027 | M75: Test Year 2028 | N75: Test Year 2029 | O75: Test Year 2030 | P75: Test Year 2031 | R75: Rate Class | S75: =C15 -> Historical 2018 | T75: =D15 -> Historical 2019 | U75: =E15 -> Historical 2020 | V75: =F15 -> Historical 2021 | W75: =G15 -> Historical 2022 | X75: Historical 2023 | Y75: Historical 2024 | Z75: Bridge Year 2025 | AA75: Bridge Year 2026 | AB75: Test Year 2027 | AC75: Test Year 2028 | AD75: Test Year 2029 | AE75: Test Year 2030 | AF75: Test Year 2031
A76: =A61 -> Residential | R76: =A76 -> Residential | W76: =IF(ISERROR((G76-#REF!)/#REF!), "", (G76-#REF!)/#REF!) ->  | X76: =IF(ISERROR((H76-G76)/G76), "", (H76-G76)/G76) -> 
A77: =A62 -> General Service < 50 kW | R77: General Service < 50 kW | W77: =IF(ISERROR((G77-#REF!)/#REF!), "", (G77-#REF!)/#REF!) -> 
A78: =A63 -> General Service > 50 kW, Regular | B78: 26655.12 | C78: 26857.31 | D78: 26879.53 | E78: 25131.69 | F78: 25613.47 | G78: 26471.61 | H78: 27096.94 | I78: 27469.87 | J78: 27435.14008 | K78: 27405.93124 | L78: 27755.01969 | M78: 27942.22102 | N78: 28173.42282 | O78: 28293.74048 | P78: 28499.60823 | R78: General Service > 50 kW, Regular | S78: =IF(ISERROR((C78-B78)/B78), "", (C78-B78)/B78) -> 0.007585409482 | T78: =IF(ISERROR((D78-C78)/C78), "", (D78-C78)/C78) -> 0.0008273352767 | U78: =IF(ISERROR((E78-D78)/D78), "", (E78-D78)/D78) -> -0.06502494649 | V78: =IF(ISERROR((F78-E78)/E78), "", (F78-E78)/E78) -> 0.01917021895 | W78: =IF(ISERROR((G78-F78)/F78), "", (G78-F78)/F78) -> 0.03350346517 | X78: 0.02362266594 | Y78: 0.01376280864 | Z78: -0.001264291364 | AA78: -0.00106465086 | AB78: 0.01273769724 | AC78: 0.006744773692 | AD78: 0.008274281373 | AE78: 0.004270608877 | AF78: 0.007276088008
A79: =A64 -> General Service > 50 kW, Intermediate | B79: 7597.25 | C79: 7747.52 | D79: 7574.46 | E79: 6882.66 | F79: 7199.46 | G79: 7314.52 | H79: 7026.01 | I79: 6793.69 | J79: 6804.377541 | K79: 6797.362551 | L79: 6604.074943 | M79: 6525.778765 | N79: 6499.442064 | O79: 6474.992752 | P79: 6466.31845 | R79: General Service > 50 kW, Intermediate | S79: 0.01977952549 | T79: -0.02233747057 | U79: -0.09133324356 | V79: 0.04602871564 | W79: 0.01598175419 | X79: -0.03944346314 | Y79: -0.0330657087 | Z79: 0.001573157049 | AA79: -0.001030952491 | AB79: -0.02843567731 | AC79: -0.01185573737 | AD79: -0.004035794311 | AE79: -0.003761755634 | AF79: -0.001339662037
A80: =A65 -> Large Use | B80: 3231.8 | C80: 3261.49 | D80: 3340.59 | E80: 3331.22 | F80: 3497.58 | G80: 3686.04 | H80: 3841.27 | I80: 3856.87 | J80: 3798.937794 | K80: 3926.176097 | L80: 4034.148384 | M80: 4151.355614 | N80: 4245.093595 | O80: 4491.671409 | P80: 4500.720326 | R80: Large Use | S80: 0.009186830868 | T80: 0.02425271885 | U80: -0.002804893746 | V80: 0.04993966175 | W80: 0.05388297051 | X80: 0.04211294506 | Y80: 0.004061156857 | Z80: -0.01502052329 | AA80: 0.03349312608 | AB80: 0.02750062263 | AC80: 0.02905377274 | AD80: 0.02258008931 | AE80: 0.05808536583 | AF80: 0.002014598954
A81: Large Use with Dedicated Assets | B81: 2020.87 | C81: 2098.07 | D81: 2079.7 | E81: 1880.16 | F81: 1801.79 | G81: 1833.73 | H81: 1676.08 | I81: 1589.88 | J81: 1593.37 | K81: 1598.85 | L81: 1620.102026 | M81: 1616.422026 | N81: 1620.102026 | O81: 1620.102026 | P81: 1620.102026 | R81: Large Use with Dedicated Assets | S81: 0.03820136872 | T81: -0.008755665922 | U81: -0.09594653075 | V81: -0.04168262276 | W81: 0.01772681611 | X81: -0.08597230781 | Y81: -0.05142952604 | Z81: 0.002195134224 | AA81: 0.003439251398 | AB81: 0.01329206972 | AC81: -0.002271461884 | AD81: 0.00227663317 | AE81: 0 | AF81: 0
A82: =A67 -> Street Lighting | B82: 399.9 | C82: 360.03 | D82: 331.48 | E82: 308.1 | F82: 271.95 | G82: 268.95 | H82: 260.8 | I82: 260.33 | J82: 260.36 | K82: 264.52 | L82: 265.73 | M82: 265.38 | N82: 266.24 | O82: 266.31 | P82: 266.31 | R82: Street Lighting | S82: -0.09969992498 | T82: -0.07929894731 | U82: -0.0705321588 | V82: -0.1173320351 | W82: -0.0110314396 | X82: =IF(ISERROR((H82-G82)/G82), "", (H82-G82)/G82) -> -0.0303030303 | Y82: =IF(ISERROR((I82-H82)/H82), "", (I82-H82)/H82) -> -0.001802147239 | Z82: =IF(ISERROR((J82-I82)/I82), "", (J82-I82)/I82) -> 0.0001152383513 | AA82: =IF(ISERROR((K82-J82)/J82), "", (K82-J82)/J82) -> 0.01597787679 | AB82: =IF(ISERROR((L82-K82)/K82), "", (L82-K82)/K82) -> 0.004574323303 | AC82: =IF(ISERROR((M82-L82)/L82), "", (M82-L82)/L82) -> -0.001317126407 | AD82: =IF(ISERROR((N82-M82)/M82), "", (N82-M82)/M82) -> 0.003240636069 | AE82: =IF(ISERROR((O82-N82)/N82), "", (O82-N82)/N82) -> 0.0002629206731 | AF82: =IF(ISERROR((P82-O82)/O82), "", (P82-O82)/O82) -> 0
A83: Sentinel Lighting | B83: 2.0292 | C83: 2.1292 | D83: 1.8592 | E83: 1.9004 | F83: 1.8056 | G83: 1.7988 | H83: 1.6988 | I83: 1.5787 | J83: 1.7188 | K83: 1.6089 | L83: 1.5689 | M83: 1.4888 | N83: 1.4389 | O83: 1.3889 | P83: 1.3689 | R83: Sentinel Lighting | S83: 0.04928050463 | T83: -0.1268081909 | U83: 0.02216006885 | V83: -0.0498842349 | W83: -0.003766061143 | X83: -0.0555926173 | Y83: -0.07069696256 | Z83: 0.08874390321 | AA83: -0.06393995811 | AB83: -0.02486170676 | AC83: -0.05105487921 | AD83: -0.03351692638 | AE83: -0.03474876642 | AF83: -0.0143998848
A84: Unmetered Scattered Load | R84: Unmetered Scattered Load
A85: Embedded Distributor | R85: Embedded Distributor
